bitfinex/quotes_ETHUSD_20260213
["timestamp","ask_amount","ask_price","bid_price","bid_amount"]
[1771024800410,1.51807278,2052.7,2052.0,0.001]
[1771024800623,1.51807278,2052.7,2052.0,1.27]
[1771024801114,1.41054593,2052.6,2052.0,1.27]
[1771024801311,1.41054593,2052.5,2052.0,1.27]
[1771024802210,1.41054593,2052.5,2052.0,0.001]
[1771024802801,1.52027277,2052.4,2052.0,0.001]
[1771024803181,0.0011,2053.0,2052.2,1.43378262]
[1771024803384,1.41164593,2053.0,2052.2,1.43378262]
[1771024803785,1.41164593,2053.0,2052.3,1.43378262]
[1771024805395,1.41164593,2053.0,2052.4,1.43378262]
[1771024805396,0.0011,2053.0,2052.4,1.43378262]
[1771024805594,0.0011,2053.0,2052.6,1.43378262]
[1771024806490,0.0011,2053.1,2052.9,1.43378262]
[1771024811520,0.0011,2053.1,2052.7,1.43378262]
[1771024813823,0.0011,2053.1,2052.8,1.43378262]
[1771024814724,0.0011,2053.2,2052.8,1.43378262]
[1771024815496,0.0011,2053.4,2053.1,1.43378262]
[1771024815920,0.0011,2053.4,2052.9,1.43378262]
[1771024816126,0.0011,2053.4,2052.7,10.35014333]
[1771024816327,0.0011,2053.4,2052.8,1.43378262]
[1771024816526,0.0011,2053.4,2052.9,1.281]
[1771024816910,1.41164593,2053.4,2052.9,1.281]
[1771024818634,0.0011,2053.4,2053.0,1.43378262]
[1771024819216,0.0011,2053.7,2053.4,1.43378262]
[1771024819407,0.0011,2053.9,2053.5,1.43378262]
[1771024819733,0.0011,2053.9,2053.3,7.69850038]
[1771024819734,0.0011,2053.9,2053.3,9.132283]
[1771024819933,0.0011,2053.9,2053.3,1.43378262]
[1771024820321,0.0011,2053.9,2053.5,1.43378262]
[1771024822329,1.41054593,2053.8,2053.3,1.282]
[1771024822522,1.41054593,2053.8,2052.9,2.71778262]
[1771024822848,1.41054593,2053.8,2053.0,1.43378262]
[1771024823747,1.41054593,2053.7,2052.9,1.284]
[1771024823924,1.41054593,2053.7,2052.9,2.71778262]
[1771024825540,1.41054593,2053.7,2052.9,1.284]
[1771024825737,1.41054593,2053.7,2053.0,1.43378262]
[1771024825921,14.20140273,2053.9,2053.0,1.43378262]
[1771024825922,3.04464593,2053.9,2053.0,1.43378262]
[1771024826131,1.6341,2053.9,2053.1,1.43378262]
[1771024826654,3.04464593,2053.9,2053.1,1.43378262]
[1771024830654,0.0011,2053.9,2053.3,1.43378262]
[1771024831035,1.42605048,2053.9,2053.3,1.43378262]
[1771024832442,0.0011,2053.9,2053.3,1.43378262]
[1771024833561,0.0011,2053.9,2053.4,1.3920559]
[1771024834360,1.42605048,2053.9,2053.3,1.284]
[1771024834861,1.42605048,2053.9,2053.3,2.6760559]
[1771024838440,0.0011,2053.9,2053.4,1.4544922]
[1771024841267,0.0011,2053.9,2053.3,1.284]
[1771024841268,1.42323022,2053.9,2053.3,1.284]
[1771024841840,1.42323022,2053.9,2053.3,2.7384922]
[1771024846570,0.0011,2053.9,2053.3,2.7384922]
[1771024847975,0.0011,2053.9,2053.3,1.284]
[1771024848155,0.0011,2053.9,2053.4,1.4544922]
[1771024848472,0.0011,2053.9,2053.5,1.4544922]
[1771024849040,0.0011,2053.9,2053.3,1.284]
[1771024849271,0.0011,2053.9,2053.3,2.7384922]
[1771024849572,0.0011,2053.9,2053.4,1.4544922]
[1771024858752,0.0011,2053.9,2053.4,7.69850038]
[1771024859080,0.0011,2053.9,2053.5,1.4544922]
[1771024861988,0.0011,2053.9,2053.3,2.66448197]
[1771024862163,0.0011,2053.9,2053.4,1.37848197]
[1771024867251,0.0011,2053.9,2053.5,7.68892782]
[1771024867557,0.0011,2053.9,2053.6,1.37848197]
[1771024868153,0.0011,2053.9,2053.2,1.37848197]
[1771024868366,0.0011,2054.0,2053.2,1.37848197]
[1771024869091,0.03936242,2053.9,2053.2,1.37848197]
[1771024869389,0.03936242,2053.7,2053.1,0.001]
[1771024869691,0.03936242,2053.5,2053.1,0.001]
[1771024869866,0.03836242,2053.3,2052.9,0.001]
[1771024870873,0.03836242,2053.3,2052.8,0.001]
[1771024870874,0.03500317,2053.1,2052.8,0.001]
[1771024871183,0.03500317,2053.1,2052.6,0.001]
[1771024872488,7.68892782,2052.9,2052.6,0.001]
[1771024872787,0.02839349,2052.8,2052.6,0.001]
[1771024873480,1.24626914,2052.8,2052.6,0.001]
[1771024873676,2.83282812,2052.9,2052.6,0.001]
[1771024873878,1.2176518,2053.2,2052.6,0.001]
[1771024874190,0.02164764,2052.9,2052.4,0.001]
[1771024874394,0.02164764,2052.7,2052.4,0.001]
[1771024878869,1.21796745,2052.6,2052.4,0.001]
[1771024879884,2.85955597,2052.7,2052.4,0.001]
[1771024880090,2.83790833,2052.7,2052.4,0.001]
[1771024880998,1.62,2052.7,2052.4,0.001]
[1771024886179,2.83791402,2052.7,2052.4,0.001]
[1771024887007,1.62,2052.7,2052.4,0.001]
[1771024889522,0.0011,2053.0,2052.5,1.43675406]
[1771024889684,7.68892782,2052.9,2052.4,0.001]
[1771024890008,1.637,2052.8,2052.4,0.001]
[1771024891023,7.68892782,2052.7,2052.4,0.001]
[1771024892083,2.85489745,2052.8,2052.4,0.001]
[1771024893509,0.0011,2053.0,2052.5,1.43675406]
[1771024893714,1.642,2052.8,2052.5,1.43675406]
[1771024906927,1.654,2052.9,2052.5,1.43675406]
[1771024907728,0.0011,2053.0,2052.5,1.43675406]
[1771024920405,7.70010961,2052.9,2052.5,1.43675406]
[1771024920703,7.70010961,2052.9,2052.4,0.001]
[1771024920922,7.70010961,2052.9,2052.4,1.43775406]
[1771024921334,1.664,2052.8,2052.4,1.43775406]
[1771024922024,2.88185145,2052.8,2052.4,1.43775406]
[1771024922230,2.88185145,2052.8,2052.4,0.001]
[1771024925043,1.664,2052.8,2052.4,1.43775406]
[1771024940956,0.73542299,2052.8,2052.4,1.43775406]
[1771024941145,1.21885674,2053.0,2052.4,0.001]
[1771024941325,1.687,2052.9,2052.5,1.43675406]
[1771024943954,9.38710961,2052.9,2052.5,1.43675406]
[1771024946851,1.687,2052.9,2052.5,1.43675406]
[1771024949035,1.687,2052.9,2052.4,0.001]
[1771024949635,1.687,2052.9,2052.4,1.36101363]
[1771024949957,9.38710961,2052.9,2052.4,1.36101363]
[1771024952239,1.687,2052.9,2052.4,1.36101363]
[1771024954959,0.0011,2053.0,2052.4,1.36101363]
[1771024969061,1.24715339,2053.0,2052.4,1.36101363]
[1771024972674,4.16079743,2052.9,2052.4,0.001]
[1771024973778,1.23525343,2052.8,2052.4,0.001]
[1771024975964,2.45310236,2052.8,2052.4,0.001]
[1771024977180,1.23525343,2052.8,2052.4,0.001]
[1771024978882,8.93722143,2052.8,2052.4,0.001]
[1771024979060,7.703068,2053.0,2052.4,1.23391026]
[1771024979382,1.7161,2053.0,2052.4,1.23391026]
[1771024980377,0.0011,2053.0,2052.4,1.23391026]
[1771024982397,0.0011,2053.2,2052.9,1.29022146]
[1771024982575,0.0011,2053.4,2053.1,1.29022146]
[1771024982766,0.0011,2053.6,2053.2,1.29022146]
[1771024984267,0.0011,2053.3,2053.0,1.29022146]
[1771024984469,0.0011,2053.5,2053.0,1.29022146]
[1771024985902,1.20290999,2053.4,2052.8,1.29022146]
[1771024986466,7.703068,2053.5,2052.8,1.29022146]
[1771024986669,8.90520365,2053.5,2052.8,1.29022146]
[1771024987789,7.703068,2053.5,2052.8,1.29022146]
[1771024987964,0.0011,2053.5,2052.8,1.29022146]
[1771024988868,0.0011,2053.5,2052.9,1.29022146]
[1771024991300,0.0011,2053.5,2053.1,1.29022146]
[1771025006718,0.0011,2053.5,2053.0,1.29022146]
[1771025018439,0.0011,2053.5,2052.8,0.001]
[1771025018440,1.11428392,2053.4,2052.8,0.001]
[1771025018646,1.11294078,2053.3,2052.8,0.001]
[1771025018808,7.701968,2053.4,2052.8,0.001]
[1771025019125,8.8121361,2053.4,2052.8,0.001]
[1771025022230,1.10173282,2053.3,2052.8,0.001]
[1771025022531,1.10173282,2053.1,2052.8,0.001]
[1771025022828,8.80370082,2053.0,2052.6,0.001]
[1771025024421,8.80370082,2053.0,2052.5,0.001]
[1771025024422,1.09617175,2052.9,2052.5,0.001]
[1771025025406,7.701968,2052.8,2052.5,0.001]
[1771025028330,7.701968,2052.8,2052.4,0.001]
[1771025029033,9.416968,2052.8,2052.4,0.001]
[1771025034738,9.416968,2052.8,2052.3,1.22169052]
[1771025038547,9.416968,2052.8,2052.3,0.001]
[1771025038548,11.69189975,2052.8,2052.3,0.001]
[1771025038730,10.47405067,2052.8,2052.3,0.001]
[1771025039640,9.416968,2052.8,2052.3,0.001]
[1771025041042,7.70313463,2052.7,2052.3,0.001]
[1771025046470,7.70313463,2052.7,2052.3,1.16509218]
[1771025059790,9.45213463,2052.7,2052.3,1.16509218]
[1771025064812,2.92493825,2052.6,2052.1,1.16509218]
[1771025064974,2.92493825,2052.5,2052.1,1.16509218]
[1771025065174,2.92493825,2052.4,2052.1,1.16509218]
[1771025065472,2.92493825,2052.3,2052.1,1.16509218]
[1771025065672,2.92493825,2052.2,2052.1,1.16509218]
[1771025074974,2.91553406,2052.2,2052.1,0.001]
[1771025075174,2.91553406,2052.2,2052.1,1.1426105]
[1771025076910,9.45213463,2052.7,2052.2,1.1416105]
[1771025078081,1.749,2052.7,2052.2,1.1416105]
[1771025079282,0.0011,2052.5,2052.2,1.1416105]
[1771025100221,0.0011,2052.5,2052.1,0.001]
[1771025102610,0.0011,2052.5,2052.1,1.09562683]
[1771025108311,0.0011,2052.5,2052.2,1.09462683]
[1771025109541,0.0011,2053.0,2052.5,1.09462683]
[1771025109829,0.0022,2053.0,2052.5,1.09462683]
[1771025111044,0.0022,2053.0,2052.6,1.09462683]
[1771025112208,0.0022,2053.0,2052.7,1.09462683]
[1771025113132,0.0011,2053.1,2052.7,1.09462683]
[1771025114216,0.0011,2053.0,2052.3,1.21811633]
[1771025114409,0.0022,2053.1,2052.3,1.21811633]
[1771025114410,0.0011,2053.1,2052.5,1.09462683]
[1771025114813,0.93578042,2053.1,2052.5,1.09462683]
[1771025115037,8.63740222,2053.0,2052.4,1.237]
[1771025115336,0.93196453,2052.9,2052.4,1.237]
[1771025118117,0.0011,2053.1,2052.3,1.09462683]
[1771025119141,0.92210499,2053.1,2052.3,1.09462683]
[1771025121163,0.91555423,2052.9,2052.2,1.236]
[1771025121526,0.91555423,2052.7,2052.2,1.236]
[1771025125626,7.7027218,2052.8,2052.2,1.236]
[1771025125827,1.21881811,2053.1,2052.2,1.236]
[1771025125828,0.0011,2053.1,2052.3,1.09462683]
[1771025128532,0.0011,2053.1,2052.4,1.09462683]
[1771025129838,0.0011,2053.1,2052.5,1.09462683]
[1771025136751,0.0011,2053.1,2052.6,1.12430202]
[1771025142258,0.0011,2053.1,2052.7,1.15355085]
[1771025143778,0.0011,2053.1,2052.6,1.238]
[1771025143983,0.86107559,2053.1,2052.6,1.238]
[1771025144167,0.0011,2053.1,2052.6,2.39155085]
[1771025146162,0.0011,2053.1,2052.7,1.15355085]
[1771025176337,0.0011,2053.1,2052.8,1.09444426]
[1771025179061,0.0011,2053.1,2052.6,1.09444426]
[1771025188799,0.74680904,2053.0,2052.5,1.252]
[1771025188953,0.7441214,2053.0,2052.5,1.252]
[1771025189161,0.74277758,2053.0,2052.5,1.252]
[1771025189478,0.74143376,2053.0,2052.5,1.252]
[1771025189666,0.74008994,2053.0,2052.5,1.252]
[1771025190589,0.0011,2053.1,2052.6,1.09444426]
[1771025193007,0.73190338,2053.1,2052.5,1.252]
[1771025195076,0.73190338,2053.1,2052.5,2.29480698]
[1771025196698,0.72129616,2053.0,2052.5,1.252]
[1771025196901,8.41874479,2052.9,2052.5,1.252]
[1771025197106,0.72129616,2052.9,2052.5,1.252]
[1771025198498,0.0011,2053.1,2052.5,2.22600415]
[1771025198697,0.0011,2053.1,2052.6,0.97400415]
[1771025200481,0.71194936,2053.0,2052.5,1.252]
[1771025203290,0.71194936,2053.0,2052.4,0.001]
[1771025203486,7.69854863,2053.1,2052.4,0.97500415]
[1771025204081,0.0011,2053.1,2052.4,0.97500415]
[1771025208908,0.69329522,2052.9,2052.4,0.001]
[1771025209410,7.69744863,2052.8,2052.4,0.001]
[1771025209589,0.69098417,2052.7,2052.4,0.001]
[1771025213631,0.6896404,2052.7,2052.4,0.001]
[1771025213989,0.68043988,2053.0,2052.4,0.001]
[1771025214229,0.68153988,2053.1,2052.4,0.97500415]
[1771025214399,1.709,2053.0,2052.4,0.97500415]
[1771025220029,1.709,2053.0,2052.4,0.001]
[1771025220202,1.709,2053.0,2052.5,0.97400415]
[1771025222429,0.0011,2053.1,2052.5,0.97400415]
[1771025223605,0.65897168,2053.1,2052.4,1.252]
[1771025223804,0.65897168,2053.1,2052.5,1.01287998]
[1771025228636,0.0011,2053.1,2052.5,1.01287998]
[1771025246165,0.0011,2053.1,2052.5,2.23089379]
[1771025246373,0.0011,2053.1,2052.6,1.01287998]
[1771025247275,0.0011,2053.1,2052.7,1.01287998]
[1771025257761,0.0011,2053.1,2052.5,0.92086379]
[1771025258077,0.58316299,2053.1,2052.5,0.92086379]
[1771025259160,0.0011,2053.1,2052.5,0.92086379]
[1771025259671,0.0011,2053.1,2052.7,0.96137145]
[1771025259882,0.0011,2053.3,2052.8,0.96137145]
[1771025263178,0.0011,2053.3,2052.8,1.254]
[1771025263378,0.0011,2053.3,2052.9,0.96137145]
[1771025274363,0.0011,2053.3,2052.8,2.21537145]
[1771025276392,0.0011,2053.3,2052.9,0.96137145]
[1771025279400,0.0011,2053.3,2052.8,1.254]
[1771025279689,0.0011,2053.3,2052.8,2.21537145]
[1771025280320,0.0011,2053.6,2053.2,0.96137145]
[1771025280725,0.0011,2053.6,2052.9,0.96137145]
[1771025281013,0.53625375,2053.6,2052.9,0.96137145]
[1771025281417,0.53518881,2053.5,2052.8,1.254]
[1771025281717,7.70014893,2053.4,2052.8,1.254]
[1771025282020,0.53518881,2053.3,2052.7,0.96872153]
[1771025282595,0.53518881,2053.3,2052.5,0.96972153]
[1771025289028,1.677,2053.5,2052.6,0.96872153]
[1771025289226,2.19649167,2053.5,2052.6,0.96872153]
[1771025290319,1.677,2053.5,2052.6,0.96872153]
[1771025290735,2.19453711,2053.5,2052.6,0.96872153]
[1771025291536,0.51753711,2053.5,2052.6,0.96872153]
[1771025295546,0.50782726,2053.4,2052.6,0.96872153]
[1771025296837,0.50699652,2053.6,2052.6,0.96872153]
[1771025299143,0.50204761,2053.5,2052.6,0.96872153]
[1771025304723,0.50204761,2053.5,2052.7,0.96872153]
[1771025312858,0.47556903,2053.4,2052.7,0.96872153]
[1771025313224,0.473706,2053.5,2052.7,0.96872153]
[1771025316564,0.0011,2053.6,2052.7,0.96872153]
[1771025316766,0.0011,2053.6,2052.8,0.91781159]
[1771025317158,0.46923776,2053.6,2052.8,0.91781159]
[1771025319260,0.46263363,2053.5,2052.8,0.91781159]
[1771025320566,0.46079623,2053.4,2052.6,0.86570726]
[1771025322260,0.45713253,2053.3,2052.6,0.86570726]
[1771025322641,0.45713253,2053.2,2052.6,0.86570726]
[1771025323053,0.45713253,2053.2,2052.5,0.001]
[1771025323232,0.45713253,2053.2,2052.5,0.86670726]
[1771025323436,0.45713253,2053.2,2052.5,0.001]
[1771025324273,0.45348549,2053.0,2052.5,0.001]
[1771025324473,1.66,2053.1,2052.5,0.001]
[1771025324474,2.11348549,2053.1,2052.5,0.001]
[1771025324780,3.33116147,2053.1,2052.5,0.001]
[1771025325061,2.87767598,2053.1,2052.5,0.001]
[1771025325247,0.45348549,2053.0,2052.5,0.001]
[1771025326264,1.66,2053.1,2052.5,0.86670726]
[1771025327551,2.10804038,2053.1,2052.5,0.86670726]
[1771025329459,3.32571173,2053.1,2052.5,0.86670726]
[1771025329680,2.10804038,2053.1,2052.5,0.86670726]
[1771025329883,3.32572277,2053.1,2052.5,0.86670726]
[1771025330178,2.87768239,2053.1,2052.5,0.001]
[1771025330375,0.44262981,2053.0,2052.5,0.001]
[1771025330744,0.44162981,2052.6,2052.3,0.001]
[1771025330945,1.663,2052.6,2052.3,0.001]
[1771025332160,3.32080281,2052.6,2052.3,0.001]
[1771025332877,2.10283307,2052.6,2052.3,0.001]
[1771025334278,3.32080409,2052.6,2052.3,0.001]
[1771025338057,3.32080409,2052.6,2052.2,0.001]
[1771025338058,3.32080409,2052.6,2052.1,0.001]
[1771025338287,2.88097102,2052.6,2052.0,0.86670726]
[1771025338466,2.88097102,2052.6,2051.7,0.86670726]
[1771025338467,0.42743676,2052.3,2051.7,0.86670726]
[1771025338666,1.674,2052.2,2051.7,0.86670726]
[1771025341675,1.674,2052.2,2051.8,0.89604726]
[1771025341981,7.69851419,2052.4,2051.8,0.89604726]
[1771025341982,1.676,2052.4,2051.8,0.89604726]
[1771025345223,1.675,2052.5,2051.9,0.89504726]
[1771025345376,1.675,2052.7,2051.9,0.89504726]
[1771025346906,2.89291093,2052.7,2051.9,0.89504726]
[1771025347313,1.675,2052.7,2051.9,0.89504726]
[1771025350091,8.11131125,2052.6,2051.9,0.89504726]
[1771025350286,0.40665714,2052.5,2051.9,0.89504726]
[1771025350796,3.29957226,2052.7,2051.9,0.89504726]
[1771025351115,2.91291408,2052.6,2051.9,0.89504726]
[1771025351414,2.91291408,2052.5,2051.9,0.89504726]
[1771025351620,2.91291408,2052.4,2051.9,0.89504726]
[1771025351806,2.91291408,2052.3,2051.9,0.89504726]
[1771025352006,2.91291408,2052.2,2051.9,0.89504726]
[1771025352221,2.91291408,2052.1,2051.9,0.89504726]
[1771025352421,2.91291408,2052.0,2051.9,0.89504726]
[1771025352990,1.21797996,2052.6,2051.9,0.89504726]
[1771025356738,1.675,2052.7,2051.9,0.89504726]
[1771025356937,2.89291165,2052.7,2051.9,0.89504726]
[1771025358200,10.99050809,2052.7,2051.9,0.89504726]
[1771025359411,0.39127091,2052.6,2051.9,0.89504726]
[1771025362733,1.21802679,2052.5,2051.9,0.89504726]
[1771025376716,1.21802679,2052.5,2051.7,0.84955416]
[1771025376717,7.70292796,2052.5,2051.7,0.84955416]
[1771025376921,1.21796745,2052.6,2051.7,0.84955416]
[1771025377121,1.58091636,2052.6,2051.7,0.84955416]
[1771025378352,1.21796745,2052.6,2051.7,0.84955416]
[1771025379751,1.68,2052.5,2051.7,0.84955416]
[1771025388365,0.34355411,2052.4,2051.7,0.84955416]
[1771025390661,1.68,2052.5,2051.7,0.84955416]
[1771025397086,1.68,2052.5,2051.8,0.90076044]
[1771025397387,0.0011,2052.8,2051.8,0.90076044]
[1771025397574,0.0011,2052.8,2052.2,0.90076044]
[1771025397773,0.0011,2052.8,2052.4,0.90076044]
[1771025397954,0.0011,2052.9,2052.5,0.90076044]
[1771025398283,2.9201731,2052.8,2052.4,1.218]
[1771025398487,7.70292796,2052.5,2051.8,0.90076044]
[1771025398781,0.41558247,2052.2,2051.6,0.001]
[1771025398982,2.9201731,2052.1,2051.6,0.001]
[1771025399282,2.9201731,2052.0,2051.6,0.001]
[1771025399485,2.9201731,2051.9,2051.6,0.001]
[1771025399685,2.9201731,2051.8,2051.6,0.90176044]
[1771025399846,2.9201731,2051.7,2051.6,0.90176044]
[1771025400052,2.9201731,2051.7,2051.6,0.001]
[1771025400249,2.9201731,2051.7,2051.6,0.90176044]
[1771025400572,2.89314718,2052.3,2051.7,0.90076044]
[1771025400785,3.30837589,2052.3,2051.7,0.90076044]
[1771025401094,11.01130385,2052.3,2051.7,0.90076044]
[1771025401955,3.30837589,2052.3,2051.7,0.90076044]
[1771025402149,0.878,2052.8,2051.7,0.90076044]
[1771025402352,2.09590135,2052.8,2051.9,0.84354876]
[1771025402568,9.79882931,2052.8,2051.9,0.84354876]
[1771025402780,10.29789436,2052.8,2051.9,0.84354876]
[1771025403283,10.29789436,2052.8,2051.6,8.43064316]
[1771025403456,0.878,2052.8,2051.7,0.84354876]
[1771025404085,1.69088562,2052.8,2051.7,0.84354876]
[1771025405690,2.90875827,2052.8,2051.7,0.84354876]
[1771025405981,0.81288562,2052.7,2051.7,0.84354876]
[1771025406182,0.81288562,2052.3,2051.5,0.84454876]
[1771025407659,1.68,2052.4,2051.5,0.84454876]
[1771025408492,2.49288562,2052.4,2051.5,0.84454876]
[1771025411783,0.81288562,2052.4,2051.5,0.84454876]
[1771025412488,1.2180747,2052.5,2051.5,0.84454876]
[1771025412697,2.03096032,2052.5,2051.5,0.84454876]
[1771025418224,0.81288562,2052.4,2051.5,0.84454876]
[1771025419508,1.678,2052.6,2051.6,0.84354876]
[1771025419685,1.678,2052.6,2051.8,0.84354876]
[1771025421621,1.678,2052.6,2052.0,0.84354876]
[1771025422414,0.0011,2052.8,2052.0,0.84354876]
[1771025426591,0.0011,2052.8,2052.1,0.84354876]
[1771025426919,0.0011,2052.8,2052.2,0.84354876]
[1771025428700,0.0011,2052.8,2052.3,0.84354876]
[1771025428905,0.0011,2052.8,2052.4,0.84354876]
[1771025435798,0.0011,2052.8,2052.5,0.85892914]
[1771025436298,0.0011,2052.9,2052.6,0.85892914]
[1771025437099,0.0011,2052.9,2052.8,0.85892914]
[1771025437294,0.0011,2053.0,2052.8,0.85892914]
[1771025446845,0.0011,2053.0,2052.5,1.229]
[1771025447040,0.0011,2053.0,2052.6,0.92241085]
[1771025466173,0.0011,2053.0,2052.7,0.84506421]
[1771025466376,0.0011,2053.1,2052.7,0.84506421]
[1771025493138,0.0011,2053.1,2052.8,0.81050299]
[1771025493302,0.0011,2053.1,2052.6,0.81050299]
[1771025493626,0.0011,2053.1,2052.7,1.242]
[1771025512425,0.88716348,2053.1,2052.4,0.84461434]
[1771025512621,0.88716348,2053.1,2052.4,1.247]
[1771025513952,0.0011,2053.1,2052.5,0.84361434]
[1771025518946,0.88606348,2052.7,2052.4,0.001]
[1771025523457,7.69712709,2052.5,2052.1,0.001]
[1771025523645,1.21790973,2052.7,2051.7,0.8210523]
[1771025523646,0.82943868,2052.4,2051.7,0.8210523]
[1771025524644,0.82943868,2052.4,2051.8,0.8210523]
[1771025525244,0.82943868,2052.4,2052.1,0.001]
[1771025525655,0.82943868,2052.8,2052.1,0.8210523]
[1771025529934,0.82943868,2052.8,2052.1,0.001]
[1771025533260,2.04729293,2052.8,2052.1,0.001]
[1771025533560,0.82943868,2052.7,2052.1,0.001]
[1771025537842,1.613,2052.9,2052.2,0.8200523]
[1771025538246,2.44243868,2052.9,2052.2,0.8200523]
[1771025539570,1.613,2052.9,2052.2,0.8200523]
[1771025540247,2.44243868,2052.9,2052.2,0.8200523]
[1771025541785,1.613,2052.9,2052.3,0.8200523]
[1771025545073,0.83053868,2053.1,2052.3,0.8200523]
[1771025545277,0.0011,2053.1,2052.3,0.8200523]
[1771025546358,0.0011,2053.1,2052.4,0.8200523]
[1771025547584,0.0011,2053.1,2052.5,0.8200523]
[1771025557086,0.0011,2053.1,2052.6,0.78761708]
[1771025558686,0.0011,2053.2,2052.7,7.70215143]
[1771025558890,0.0011,2053.2,2052.9,0.84111313]
[1771025559469,0.0011,2053.3,2052.9,0.84111313]
[1771025570189,0.0011,2053.3,2052.7,0.84111313]
[1771025570394,0.77044712,2053.3,2052.7,1.257]
[1771025580528,0.77044712,2053.3,2052.7,2.09811313]
[1771025583604,2.92030655,2053.2,2052.7,2.09811313]
[1771025583805,2.92030655,2053.1,2052.7,2.09811313]
[1771025584032,2.26662143,2053.0,2052.7,2.09811313]
[1771025584327,0.77044712,2053.3,2052.7,2.09811313]
[1771025584543,0.77044712,2053.3,2052.7,1.257]
[1771025584742,0.76314309,2053.2,2052.7,1.257]
[1771025585032,0.76314309,2053.2,2052.4,2.03371083]
[1771025585237,0.76314309,2053.2,2052.4,0.001]
[1771025585841,0.76314309,2053.2,2052.4,0.77771083]
[1771025600328,0.76314309,2053.1,2052.4,0.001]
[1771025600529,0.76314309,2052.9,2052.4,0.001]
[1771025603759,0.76314309,2052.8,2052.4,0.001]
[1771025604834,0.76314309,2052.7,2052.4,0.001]
[1771025606350,7.69854516,2052.6,2052.2,0.001]
[1771025606552,2.35114309,2052.7,2052.2,0.001]
[1771025606749,3.56905819,2052.7,2052.2,0.001]
[1771025607053,0.76314309,2052.6,2052.2,0.001]
[1771025608725,0.76314309,2052.5,2052.2,0.001]
[1771025617276,2.41671653,2052.7,2052.2,0.001]
[1771025618293,1.588,2052.7,2052.2,0.001]
[1771025618594,0.78181171,2052.6,2052.2,0.001]
[1771025622906,0.78181171,2052.5,2052.1,0.001]
[1771025623198,0.78181171,2052.3,2051.9,0.001]
[1771025625991,1.61,2052.4,2051.9,0.79835583]
[1771025630607,0.78181171,2052.3,2051.8,0.001]
[1771025630915,1.61,2052.4,2051.8,0.79835583]
[1771025639718,0.0011,2052.8,2051.9,0.79735583]
[1771025639925,0.0011,2052.8,2052.1,0.79735583]
[1771025641109,0.0011,2052.7,2052.1,0.79735583]
[1771025641412,0.0011,2052.8,2052.5,0.78273266]
[1771025655241,0.0011,2052.8,2052.3,0.78273266]
[1771025673662,0.0011,2052.8,2052.4,0.76954394]
[1771025675232,0.0011,2052.8,2052.5,7.69858301]
[1771025675466,0.0011,2052.8,2052.6,0.76954394]
[1771025675665,0.0011,2053.0,2052.9,0.76954394]
[1771025675842,0.0011,2053.1,2052.9,0.76954394]
[1771025677772,0.0011,2053.3,2052.9,0.76954394]
[1771025677974,0.0011,2053.3,2053.0,0.76296063]
[1771025678545,0.0011,2053.3,2053.0,2.01196063]
[1771025681079,0.0011,2053.3,2053.1,0.76296063]
[1771025681879,0.0011,2053.3,2053.0,1.249]
[1771025682377,0.0011,2053.3,2053.0,2.01196063]
[1771025683650,0.0011,2053.3,2053.1,0.76296063]
[1771025684277,0.0011,2053.3,2053.0,1.249]
[1771025685065,0.0011,2053.3,2052.8,2.01396063]
[1771025690565,0.0011,2053.3,2052.9,0.76296063]
[1771025700810,0.0011,2053.3,2052.8,1.251]
[1771025701588,0.73095658,2053.3,2052.8,1.251]
[1771025702282,0.73095658,2053.3,2052.6,0.001]
[1771025702283,0.72985658,2053.0,2052.6,0.001]
[1771025702477,0.72985658,2052.9,2052.6,0.001]
[1771025702679,0.72985658,2052.8,2052.6,0.001]
[1771025702902,0.72985658,2052.8,2052.4,0.001]
[1771025703109,0.72985658,2052.6,2052.2,0.001]
[1771025709792,1.94782421,2052.6,2052.2,0.001]
[1771025710718,0.72985658,2052.6,2052.2,0.001]
[1771025712398,1.94782725,2052.6,2052.2,0.001]
[1771025712600,0.72985658,2052.5,2052.2,0.001]
[1771025714622,0.72985658,2052.5,2051.9,0.001]
[1771025714623,7.69858301,2052.3,2051.9,0.001]
[1771025714800,7.69858301,2052.3,2051.5,0.001]
[1771025714801,0.72985658,2052.2,2051.5,0.001]
[1771025716627,0.72985658,2052.1,2051.5,0.001]
[1771025717722,0.72985658,2052.1,2051.5,0.75456698]
[1771025717922,0.98339955,2052.5,2051.6,0.75456698]
[1771025718224,2.32285658,2052.4,2051.6,0.75456698]
[1771025718517,0.72985658,2052.3,2051.6,0.75456698]
[1771025720923,1.94800283,2052.3,2051.6,0.75456698]
[1771025723741,2.81112869,2052.4,2051.6,0.75456698]
[1771025727328,3.54098527,2052.4,2051.6,0.75456698]
[1771025730231,0.72985658,2052.3,2051.6,0.75456698]
[1771025733935,1.94804496,2052.3,2051.6,0.75456698]
[1771025734141,0.7272607,2052.1,2051.6,0.001]
[1771025736929,0.7272607,2052.0,2051.6,0.001]
[1771025737128,0.7272607,2051.9,2051.3,0.001]
[1771025737337,0.7272607,2051.7,2051.1,0.001]
[1771025737940,2.91752936,2051.6,2051.1,0.001]
[1771025738243,2.91752936,2051.5,2051.1,0.001]
[1771025738411,2.91752936,2051.4,2051.1,0.001]
[1771025738611,0.7272607,2051.7,2051.1,0.001]
[1771025738841,2.91693992,2051.6,2051.1,0.001]
[1771025739012,2.91693992,2051.5,2051.1,0.001]
[1771025739213,2.91693992,2051.4,2051.1,0.001]
[1771025739546,0.7272607,2051.7,2051.1,0.001]
[1771025739709,2.91646936,2051.6,2051.1,0.001]
[1771025739912,2.91646936,2051.5,2051.1,0.001]
[1771025740109,0.7272607,2051.7,2051.1,0.001]
[1771025740110,2.91646936,2051.4,2051.1,0.001]
[1771025740336,0.7272607,2051.7,2051.1,0.001]
[1771025740537,2.91610099,2051.6,2051.1,0.001]
[1771025740861,2.91610099,2051.5,2051.1,0.001]
[1771025741045,2.91610099,2051.4,2051.1,0.001]
[1771025741343,0.7272607,2051.7,2051.1,0.001]
[1771025741546,2.91627239,2051.6,2051.1,0.001]
[1771025741711,0.72665081,2051.4,2051.1,0.001]